Cogmind - Beta 14 @@@ ROGUE MODE // 2024.12.17 @ 12:16:57 Player: Julie Result: Destroyed by Y-45 Defender with Heavy Assault Rifle Performance ------------- Evolutions (1) 500 Regions Visited (2) 400 Robots Destroyed (12) 60 Value Destroyed (187) 187 Prototype IDs (1) 20 Alien Tech Used (0) 0 Bonus (0) 0 TOTAL SCORE: 1167 Bonus ------- None Cogmind --------- Core Integrity 0/400 Matter 252/300 Energy 100/100 System Corruption 0% Temperature Cool (9) Movement Core (50) Location -9/Materials Parts ------- > --- POWER (1) -------- (None) > --- PROPULSION (3) --- (None) > --- UTILITY (3) ------ (None) > --- WEAPON (2) ------- Mace > --- INVENTORY (5) ---- Small Storage Unit Signal Interpreter Targeting Computer Light Armor Plating Beam Rifle Peak State ------------ > --- POWER ------------ Heavy Ion Engine > --- PROPULSION ------- Flight Unit Flight Unit > --- UTILITY ---------- Core Shielding > --- WEAPON ----------- Particle Gun Mace > --- INVENTORY -------- Small Storage Unit Signal Interpreter Targeting Computer Light Armor Plating Beam Rifle [Rating: 10] Favorites ----------- Power Light Ion Engine Engine Light Ion Engine Propulsion Light Treads Treads Light Treads Flight Unit Flight Unit Utility Core Shielding Device Sensor Array Storage Small Storage Unit Protection Core Shielding Weapon Assault Rifle Energy Gun Particle Gun Ballistic Gun Assault Rifle Impact Weapon Mace Build | -11 -10 -9 ------- Run | Yrd Mat Mat Slots Evolved 2 | . . 2 Power . | . . . Propulsion 1 | . . 1 Utility 1 | . . 1 Weapon . | . . . Parts Attached 30 | 6 13 11 Power 9 | 1 4 4 Engine 9 | 1 4 4 Core . | . . . Reactor . | . . . Propulsion 8 | 2 5 1 Treads 5 | 2 3 . Leg . | . . . Wheel . | . . . Hover . | . . . Flight 3 | . 2 1 Utility 3 | 1 1 1 Device 1 | . . 1 Storage 1 | 1 . . Processor . | . . . Hackware . | . . . Protection 1 | . 1 . Artifact . | . . . Weapon 10 | 2 3 5 Energy Gun 5 | 1 1 3 Energy Cannon . | . . . Ballistic Gun 3 | 1 2 . Ballistic Cannon . | . . . Launcher . | . . . Special Weapon . | . . . Impact Weapon 2 | . . 2 Slashing Weapon . | . . . Piercing Weapon . | . . . Special Melee Weapon . | . . . Unidentified Prototypes 1 | . . 1 Parts Lost 11 | . 5 6 Power 2 | . 1 1 Propulsion 4 | . 2 2 Utility 2 | . . 2 Weapon 3 | . 2 1 Highest Loss Streak 6 | . 4 6 To Critical Strikes 1 | . 1 . Average Slot Usage (%) 74 | . 82 64 Engine 11 | . 12 8 Treads 14 | . 25 . Flight 8 | . . 18 Device 3 | . . 7 Storage 7 | . 14 . Protection 11 | . 12 9 Energy Gun 6 | . 4 9 Ballistic Gun 6 | . 12 . Impact Weapon 4 | . . 10 Peak Build Rating 10 | 6 7 10 Average Rating 6 | 5 5 7 On Entrance 3 | . 6 3 Naked Turns . | . . . Heaviest Build 13 | 12 13 10 Greatest Support 40 | 40 40 8 Greatest Overweight (x) 3 | 3 1 2 Average Overweight (x) . | . . . Largest Inventory Capacity 8 | 8 8 5 Average Capacity 6 | 7 7 5 Most Carried 5 | 1 5 5 Average Carried 3 | . 2 4 Final Capacity 8 | 8 5 5 Final Carried 5 | 1 5 5 Class Distribution -------------------- 100% | Mutant Dominant Class ---------------- Mutant | -10/Materials Mutant | -9/Materials Resources | -11 -10 -9 ----------- Run | Yrd Mat Mat Matter Collected 397 | 208 147 42 Remotely . | . . . Salvage Created 222 | . 157 65 Parts 18 | . 13 5 Haulers Intercepted . | . . . Recyclers Shooed . | . . . Parts Field Recycled . | . . . Retrieved Matter . | . . . Parts Self-Destructed . | . . . Prevented . | . . . Kills | -11 -10 -9 ------- Run | Yrd Mat Mat Combat Hostiles Destroyed 9 | . 6 3 Melee 4 | . 2 2 Guns 5 | . 4 1 Classes Destroyed 5 | . 4 1 Tunneler 1 | . . 1 Operator 1 | . 1 . Watcher 1 | . 1 . Swarmer 7 | . 5 2 Grunt 2 | . 1 1 Best Kill Streak 3 | . 3 2 Combat Bots Only 3 | . 3 2 Max Kills in Single Turn 1 | . 1 1 Gunslinging . | . . . Exploded . | . . . Melee 1 | . 1 1 Uniques/NPCs Destroyed . | . . . Combat | -11 -10 -9 -------- Run | Yrd Mat Mat Hostile Shots Fired 163 | . 103 60 Missed 50 | . 35 15 Damage Taken 1252 | . 634 618 Core 596 | . 194 402 Absorbed by Shields . | . . . Redirected to Shielding 44 | . 34 10 Core Remaining (%) 61 | 100 22 . Volleys Fired 28 | . 27 1 Largest 2 | . 2 1 Hottest 65 | . 60 65 Shots Fired 35 | . 34 1 Gun 35 | . 34 1 Cannon . | . . . Launcher . | . . . Special . | . . . Kinetic 27 | . 27 . Thermal 1 | . . 1 Explosive . | . . . Electromagnetic 7 | . 7 . Robot Hit Streak 5 | . 5 1 Robot Miss Streak 2 | . 2 . Penetration Max . | . . . Secondary Targets . | . . . Shots Hit Robots 31 | . 19 12 Core Hits 14 | . 13 1 Critical Kills . | . . . Critical Parts Destroyed 3 | . 1 2 Critical Strikes 3 | . 1 2 Destroy 1 | . 1 . Smash 2 | . . 2 Melee Attacks 16 | . . 16 Impact 16 | . . 16 Slashing . | . . . Piercing . | . . . Sneak Attacks 1 | . . 1 Combat Hostiles . | . . . Follow-up Attacks . | . . . Damage Inflicted 742 | . 398 344 Guns 302 | . 285 17 Cannons . | . . . Explosions 69 | . 69 . Melee 316 | . . 316 Ramming 55 | . 44 11 Kinetic 207 | . 207 . Thermal 86 | . 69 17 Explosive . | . . . Electromagnetic 78 | . 78 . Impact 316 | . . 316 Slashing . | . . . Piercing . | . . . Highest Corruption . | . . . Average Corruption . | . . . Corruption Purged . | . . . Corruption Blocked . | . . . Overload Shots . | . . . Overflow Damage 144 | . 44 100 Projectiles . | . . . Explosions 44 | . 44 . Melee 100 | . . 100 Knockbacks 2 | . . 2 Impact 2 | . . 2 Kinetic . | . . . Secondary . | . . . Self-Inflicted Damage 54 | . 50 4 Shots 1 | . 1 . Rammed 26 | . 23 3 Targets Rammed 26 | . 23 3 Kicked . | . . . Crushed . | . . . Highest Temperature 24 | . 24 22 Average Temperature 10 | . 12 7 Received Heat Transfer 243 | . 36 207 Siege Activations . | . . . Robots Corrupted 1 | . . 1 Combat Hostiles . | . . . Parts Fried 4 | . . 4 Impact Corruptions 5 | . . 5 Robots Melted . | . . . Combat Hostiles . | . . . Parts Melted . | . . . Heat Transferred 137 | . 100 37 Parts Sabotaged . | . . . Parts Stolen . | . . . Parts Stripped . | . . . Power Chain Reactions 2 | . 2 . Alert | -11 -10 -9 ------- Run | Yrd Mat Mat Peak Influence 139 | . 130 139 Initial 54 | . . 54 Average 61 | . 59 78 Maximum Alert Level . | . . . Low Security (%) 100 | 100 100 100 Level 1 . | . . . Level 2 . | . . . Level 3 . | . . . Level 4 . | . . . Level 5 . | . . . High Security . | . . . Max Security . | . . . Squads Dispatched 2 | . 1 1 Investigation . | . . . Extermination . | . . . Reinforcement 2 | . 1 1 Assault . | . . . Garrison . | . . . Intercept . | . . . Searches Triggered . | . . . Construction Impeded . | . . . Haulers Reinforced . | . . . Active Scanning Responses . | . . . Cargo Convoy Interrupts . | . . . Stealth | -11 -10 -9 --------- Run | Yrd Mat Mat Distress Signals 2 | . 2 . Communications Jammed . | . . . Distress Signals . | . . . Times Spotted 22 | . 16 6 Peak Tracking Total 6 | . 6 4 Tactical Retreats 3 | . 3 . Traps | -11 -10 -9 ------- Run | Yrd Mat Mat Traps Triggered 6 | . 4 2 Indirectly . | . . . Trap Hack Attempts . | . . . Triggered . | . . . Disarmed . | . . . Reprogrammed . | . . . Reused . | . . . Traps Extracted . | . . . Installed . | . . . Triggered . | . . . Machines | -11 -10 -9 ---------- Run | Yrd Mat Mat Machines Disabled 1 | . 1 . Max in Single Turn 1 | . 1 . Machines Repaired . | . . . Machines Dismantled . | . . . Machines Sabotaged . | . . . Overloaded Fab Kills . | . . . Hacking | -11 -10 -9 --------- Run | Yrd Mat Mat Machines Accessed 3 | . 2 1 Terminals 2 | . 1 1 Fabricators . | . . . Repair Stations . | . . . Recycling Units 1 | . 1 . Scanalyzers . | . . . Garrison Access . | . . . Total Hacks 4 | . 2 2 Successful 1 | . 1 . Failed 3 | . 1 2 Catastrophic . | . . . Database Lockouts . | . . . Manual . | . . . Terminals 3 | . 1 2 Fabricators . | . . . Repair Stations . | . . . Recycling Units 1 | . 1 . Scanalyzers . | . . . Garrison Access . | . . . Terminal Hacks 1 | . 1 . Record 1 | . 1 . Fabricator Hacks . | . . . Repair Station Hacks . | . . . Recycling Unit Hacks . | . . . Scanalyzer . | . . . Garrison Access Hacks . | . . . Unauthorized Hacks . | . . . Terminals . | . . . Fabricators . | . . . Repair Stations . | . . . Recycling Units . | . . . Scanalyzers . | . . . Garrison Access . | . . . Data Cores Recovered . | . . . Used . | . . . Hacking Detections 1 | . 1 . Full Trace Events . | . . . Feedback Events . | . . . Feedback Blocked . | . . . Robot Schematics Acquired . | . . . Robots Built . | . . . Authchips . | . . . Time . | . . . Total Robot Build Rating . | . . . Part Schematics Acquired . | . . . Parts Built . | . . . Authchips . | . . . Time . | . . . Total Part Build Rating . | . . . Parts Repaired . | . . . Time . | . . . Parts Recycled . | . . . Recycled Matter . | . . . Retrieved Matter . | . . . Retrieved Components . | . . . Parts Scanalyzed . | . . . Part Schematics Acquired . | . . . Parts Damaged . | . . . Bothacking | -11 -10 -9 ------------ Run | Yrd Mat Mat Used RIF Installer . | . . . Robots Hacked . | . . . Non-combat . | . . . Combat . | . . . Robot Hacks Applied . | . . . Relay Couplers Released . | . . . Fabnet Peak Effective % . | . . . Robots Rewired . | . . . Allies Hacked . | . . . Hacks Repelled . | . . . Allies | -11 -10 -9 -------- Run | Yrd Mat Mat Total Allies . | . . . Largest Group . | . . . Highest-Rated Group . | . . . Highest-Rated Ally . | . . . Total Orders . | . . . Ally Attacks . | . . . Total Damage . | . . . Kills . | . . . Allies Corrupted . | . . . Allies Melted . | . . . Intel | -11 -10 -9 ------- Run | Yrd Mat Mat Robot Analysis Total . | . . . Derelict Logs Recovered . | . . . Drone Launches . | . . . Drone Recoveries . | . . . Exploration | -11 -10 -9 ------------- Run | Yrd Mat Mat Turns Passed 1068 | 109 536 423 Spaces Moved 621 | 79 278 264 Core 51 | 47 2 2 Treads 292 | 32 260 . Legs . | . . . Wheels . | . . . Hover . | . . . Flight 278 | . 16 262 Fastest Speed 37 | 50 37 37 Average Speed 131 | 126 152 111 Slowest Speed 200 | 200 160 200 Overloaded Moves . | . . . Propulsion Burnouts . | . . . Robots Hopped 1 | . . 1 Cave-ins Triggered . | . . . Exploration Rate (%) 20 | 3 44 15 Regions Visited 2 Branch Regions . Pre-discovered Areas . | . . . Known Exits Taken . | . . . Unknown Exits Taken 2 | 1 1 . Scrap Searched . | . . . Spaces Dug . | . . . Terrain Destroyed 9 | . 9 . Melee . | . . . Projectile . | . . . AOE 9 | . 9 . Terrain Rammed . | . . . Walls Destroyed . | . . . Machines Disabled . | . . . Actions | -11 -10 -9 --------- Run | Yrd Mat Mat Total 787 | 85 344 358 Wait 63 | . . 63 Move 617 | 78 277 262 Hop 1 | . . 1 Pick Up 4 | 1 3 . Fast Attach 25 | 6 11 8 Attach 2 | . 1 1 Detach 1 | . 1 . Swap 3 | . 1 2 Drop 1 | . . 1 Fire 28 | . 27 1 Melee 16 | . . 16 Ram 18 | . 15 3 Kick . | . . . Crush 8 | . 8 . Escape Stasis . | . . . Rewire . | . . . Trap . | . . . Miscellaneous . | . . . Route ------- -11/Scrapyard -10/Materials (discovered 2 exits: *Mat x2) -9/Materials History --------- Turn | Location | Event 6 | -11/Scrapyard | Discovered new exit (range 14) 110 | -11/Scrapyard | Entered Materials 302 | -10/Materials | Build established: Mutant 353 | -10/Materials | Discovered new exit (range 16) 622 | -10/Materials | Core integrity fell below 50% 641 | -10/Materials | Discovered new exit (range 9) 646 | -10/Materials | Entered another Materials area 646 | -9/Materials | Evolved 2 slots: Propulsion x1, Utility x1 649 | -9/Materials | Lost 4 parts (1p2n1w) 1040 | -9/Materials | Core integrity fell below 50% 1061 | -9/Materials | Core integrity fell below 20% 1069 | -9/Materials | Destroyed by Y-45 Defender with Heavy Assault Rifle Last Messages --------------- 01007_ Lgt. Ion Engine fried. 01007_ S-10 Pest destroyed. 01012_ Flight Unit destroyed. 01015_ Core Shielding destroyed. 01015_ Y-45 Defender suffers critical hit (Smash). 01015_ Destroyed Imp. Ion Engine. 01015_ Y-45 Defender system corrupted by crushing effect. 01018_ Critical hit (Burn: +37). 01025_ R-06 Scavenger collects Flight Unit. 01027_ Sensor Array destroyed. 01028_ R-06 Scavenger collects Corrupted Lgt. Ion Engine. 01031_ M-13 Machinist fits Backup Power I on Y-45 Defender. 01033_ M-13 Machinist repairs Heat Sink. 01036_ Critical hit (Burn: +37). 01048_ Particle Gun destroyed. 01068_ K-01 Serf collects debris. Map ----- +----------------------------------------------------+ | ?????????????????????????????????????????????????? | | ?????????????????????????????????????????????????? | | ?????????????????????????????????????????????????? | | ?????????????????????????????????????????????????? | | ?????????????????????????????????????????????????? | | ?????????????????????????????????????????????????? | | ?????????????????????????????????????????????????? | | ?????????????????????????????????????????????????? | | ?????????????????????????????????????????????????? | | ?????????????????????????????????????????????????? | | ?????????????????????????????????????????????????? | | ?????????????????????????????????????????????????? | | ?????????????????????????????????????????????????? | | ?????????????????????????????????????????????????? | | ?????????????????????????????????????????????????? | | ????????????????????????????????????????#????????? | | ???????????????????????????????????????? ????????? | | ???????????????????????????????????????? ????????? | | ???????????????????????????????????????? ????????? | | ???????????????????????????????????????? ????????? | | ???????????????????????????????????????# #???????? | | ????????????????????########???????????# #???????? | | ????????????????????# #???????????# #???????? | | ????????????????????# #???????????# #???????? | | ????????????????????# !! #???????????# #???????? | | ????????????????????# !! @ #???????????# #???????? | | ????????????????????# ! #???????????# #???????? | | ????????????????????# k #???????????# ######### | | ????????????????????####Y###???????????# | | ???????????? ##### s% #???????????# ####### | | ?????????? ############# #?????? | | ?????????? T #?????? | | ?????????? ###+########### #?????? | | ?????????? ##### # #??????# #?????? | | ??????????? ?????###/### ######?# ####### | | ??????????? ????????? ?# # """ # | | ???????????? ?????????? ?# # """ # ^ | | ??????????????????????? ?# # """ + | | ??????????????????????? ?# # # ####### | | ???????????????????????############ | # #?????? | | ????????????????????????# # ?# #?????? | | ????????????????????????# "Y" ######?# #?????? | | ????????????????????????# """ #??????# ####??? | | ????????????????????????# ! #??????# !##?? | | ????????????????????????####+######??????# !#?? | | ??????????????????????????# ^############ !#?? | | ??????????????????????????# !#?? | | ??????????????????????????# ############## !#?? | | ??????????????????????????#####????????????? !##?? | | ????????????????????????????????????????????###??? | +----------------------------------------------------+ Best States ------------- Heat Dissipation 28 Energy Generation 10 Energy Capacity 125 Matter Stores 280 Matter Capacity 300 Sight Range 16 Robot Scan Range 14 Terrain Scan Density 10 Core Shielding 20 Evasion (%) 62 Recoil Reduction 2 Item Schematics ----------------- None Robot Schematics ------------------ None Fabricated ------------ Nothing Alien Tech Used ----------------- None Achievements -------------- None Challenges ------------ None Game ------ Seed ShadingShadingGun Manual? 0 Play Time 00:11:07 Cumulative 21.2 hours Start 2024.12.17 @ 12:08:15 End 2024.12.17 @ 12:16:57 Sessions 1 Manual Loads 0 Difficulty Rogue Special Mode None Game No. 63 Rogue 63 Adventurer 0 Explorer 0 Win Type - Total 0 Types 0/0/0/0/0/0/0/0/0 Lore% 10 Gallery% 24 Achievement% 21 Wizard Run 0 Options --------- Layout 1 ASCII 0 Keyboard 1 Movement Arrows Keybinds 1 Fullscreen 1 Font 18/SmallcapsGlow Map View 25x20 Zoom Use 96% Tactical HUD 1 Map Filters NONE Filters NONE Steam 1 RUN: f1560dd0-01bd-40b5-b066-d67e51f9212e